[Event "Titled Tuesday Blitz May 31 Late 2022"]
[White "Nazaretyan, Tigran"]
[Black "Hess, Robert"]
[WhiteFideId "24162345"]
[BlackFideId "2022036"]
[WhiteElo "2225"]
[BlackElo "2557"]
[Result "0-1"]
[Round "04"]
[TimeControl "180+1"]
[Date "2022.06.01"]
[WhiteClock "0:00:06"]
[BlackClock "0:00:28"]

1. d4 {[%clk 0:03:00]}  g6 {[%clk 0:02:59]} 2. Nf3 {[%clk 0:02:59]}  Bg7 {[%clk 0:03:00]} 3. c3 {[%clk 0:02:59]}  d6 {[%clk 0:03:00]} 4. Bf4 {[%clk 0:02:59]}  Nd7 {[%clk 0:03:00]} 5. e3 {[%clk 0:02:57]}  Ngf6 {[%clk 0:02:59]} 6. h3 {[%clk 0:02:57]}  O-O {[%clk 0:03:00]} 7. Nbd2 {[%clk 0:02:56]}  b6 {[%clk 0:03:00]} 8. Be2 {[%clk 0:02:51]}  Bb7 {[%clk 0:03:01]} 9. O-O {[%clk 0:02:50]}  Re8 {[%clk 0:03:00]} 10. a4 {[%clk 0:02:47]}  e5 {[%clk 0:03:00]} 11. Bh2 {[%clk 0:02:46]}  e4 {[%clk 0:03:00]} 12. Ne1 {[%clk 0:02:46]}  h5 {[%clk 0:02:59]} 13. a5 {[%clk 0:02:45]}  Rb8 {[%clk 0:02:57]} 14. Nc2 {[%clk 0:02:33]}  Nf8 {[%clk 0:02:54]} 15. Nb4 {[%clk 0:02:31]}  c5 {[%clk 0:02:43]} 16. Na6 {[%clk 0:02:24]}  Rc8 {[%clk 0:02:37]} 17. axb6 {[%clk 0:02:23]}  axb6 {[%clk 0:02:32]} 18. b4 {[%clk 0:02:18]}  Nd5 {[%clk 0:02:25]} 19. Qb3 {[%clk 0:02:07]}  Nxc3 {[%clk 0:02:21]} 20. Qxc3 {[%clk 0:01:55]}  cxd4 {[%clk 0:02:21]} 21. Qa3 {[%clk 0:01:49]}  d3 {[%clk 0:02:18]} 22. Bd1 {[%clk 0:01:49]}  Bxa1 {[%clk 0:02:04]} 23. Qxa1 {[%clk 0:01:48]}  b5 {[%clk 0:02:02]} 24. Bb3 {[%clk 0:01:31]}  Ra8 {[%clk 0:01:53]} 25. Qa2 {[%clk 0:01:17]}  Ne6 {[%clk 0:01:38]} 26. Bd5 {[%clk 0:00:29]}  Rxa6 {[%clk 0:01:38]} 27. Qb3 {[%clk 0:00:29]}  Qa8 {[%clk 0:01:24]} 28. Nxe4 {[%clk 0:00:27]}  Bxd5 {[%clk 0:01:11]} 29. Nf6+ {[%clk 0:00:27]}  Kf8 {[%clk 0:01:05]} 30. Nxd5 {[%clk 0:00:22]}  d2 {[%clk 0:01:05]} 31. Bf4 {[%clk 0:00:14]}  Nxf4 {[%clk 0:00:59]} 32. Nxf4 {[%clk 0:00:13]}  Ra1 {[%clk 0:00:57]} 33. Rd1 {[%clk 0:00:07]}  Rxd1+ {[%clk 0:00:46]} 34. Qxd1 {[%clk 0:00:06]}  Qa2 {[%clk 0:00:46]} 35. Nd3 {[%clk 0:00:04]}  Rc8 {[%clk 0:00:43]} 36. Kh2 {[%clk 0:00:04]}  Qc2 {[%clk 0:00:43]} 37. Qa1 {[%clk 0:00:02]}  Qc3 {[%clk 0:00:35]} 38. Qxc3 {[%clk 0:00:01]}  Rxc3 {[%clk 0:00:35]} 39. Nb2 {[%clk 0:00:02]}  Rb3 {[%clk 0:00:35]} 40. Nd1 {[%clk 0:00:02]}  Rb1 {[%clk 0:00:36]} 41. Nc3 {[%clk 0:00:03]}  Rc1 {[%clk 0:00:37]} 42. Ne2 {[%clk 0:00:02]}  d1=Q {[%clk 0:00:37]} 43. Nxc1 {[%clk 0:00:03]}  Qxc1 {[%clk 0:00:38]} 44. h4 {[%clk 0:00:03]}  Qc4 {[%clk 0:00:39]} 45. g3 {[%clk 0:00:03]}  Qxb4 {[%clk 0:00:39]} 46. Kg2 {[%clk 0:00:04]}  Qe4+ {[%clk 0:00:39]} 47. Kf1 {[%clk 0:00:05]}  Qc2 {[%clk 0:00:40]} 48. Kg2 {[%clk 0:00:04]}  b4 {[%clk 0:00:41]} 49. Kf3 {[%clk 0:00:04]}  b3 {[%clk 0:00:42]} 50. Kf4 {[%clk 0:00:05]}  b2 {[%clk 0:00:42]} 51. Kg5 {[%clk 0:00:06]}  Qf5+ {[%clk 0:00:42]} 52. Kh6 {[%clk 0:00:06]}  b1=Q {[%clk 0:00:39]} 53. f4 {[%clk 0:00:06]}  Qb2 {[%clk 0:00:38]} 54. Kh7 {[%clk 0:00:06]}  Qg7# {[%clk 0:00:28]} 0-1


[Site "https://www.chess.com"]

[Event "Titled Tuesday Blitz May 31 Late 2022"]
[White "Niemann, Hans Moke"]
[Black "Papp, Levente"]
[WhiteFideId "2093596"]
[BlackFideId "751243"]
[WhiteElo "2632"]
[BlackElo "2308"]
[Result "1-0"]
[Round "04"]
[TimeControl "180+1"]
[Date "2022.05.31"]
[WhiteClock "0:01:00"]
[BlackClock "0:00:02"]

1. e4 {[%clk 0:02:59]}  e6 {[%clk 0:03:00]} 2. d4 {[%clk 0:02:45]}  d5 {[%clk 0:02:59]} 3. Nc3 {[%clk 0:02:44]}  Bb4 {[%clk 0:02:59]} 4. e5 {[%clk 0:02:44]}  Ne7 {[%clk 0:02:59]} 5. Bd2 {[%clk 0:02:42]}  b6 {[%clk 0:02:58]} 6. a3 {[%clk 0:02:37]}  Bxc3 {[%clk 0:02:57]} 7. Bxc3 {[%clk 0:02:37]}  Ba6 {[%clk 0:02:58]} 8. Bxa6 {[%clk 0:02:37]}  Nxa6 {[%clk 0:02:59]} 9. Qg4 {[%clk 0:02:37]}  Nf5 {[%clk 0:02:47]} 10. Nf3 {[%clk 0:02:37]}  Qd7 {[%clk 0:02:37]} 11. O-O {[%clk 0:02:32]}  c5 {[%clk 0:02:34]} 12. Qf4 {[%clk 0:02:19]}  Rc8 {[%clk 0:02:22]} 13. Rac1 {[%clk 0:02:16]}  cxd4 {[%clk 0:01:51]} 14. Bxd4 {[%clk 0:02:08]}  h5 {[%clk 0:01:29]} 15. b3 {[%clk 0:02:07]}  Qb5 {[%clk 0:01:19]} 16. Bb2 {[%clk 0:02:05]}  Nc5 {[%clk 0:01:16]} 17. a4 {[%clk 0:02:04]}  Qd7 {[%clk 0:01:14]} 18. g3 {[%clk 0:02:02]}  O-O {[%clk 0:00:55]} 19. h3 {[%clk 0:02:01]}  Ne4 {[%clk 0:00:49]} 20. Rfd1 {[%clk 0:02:01]}  Qe7 {[%clk 0:00:48]} 21. g4 {[%clk 0:01:55]}  g5 {[%clk 0:00:45]} 22. Qh2 {[%clk 0:01:49]}  hxg4 {[%clk 0:00:42]} 23. hxg4 {[%clk 0:01:48]}  Nh4 {[%clk 0:00:42]} 24. Nxh4 {[%clk 0:01:44]}  gxh4 {[%clk 0:00:43]} 25. Qf4 {[%clk 0:01:41]}  Qg5 {[%clk 0:00:29]} 26. Qxg5+ {[%clk 0:01:41]}  Nxg5 {[%clk 0:00:30]} 27. Kg2 {[%clk 0:01:41]}  Kg7 {[%clk 0:00:28]} 28. Bd4 {[%clk 0:01:37]}  Rh8 {[%clk 0:00:23]} 29. Rh1 {[%clk 0:01:38]}  h3+ {[%clk 0:00:22]} 30. Kg3 {[%clk 0:01:38]}  Ne4+ {[%clk 0:00:22]} 31. Kf4 {[%clk 0:01:38]}  Kg6 {[%clk 0:00:19]} 32. f3 {[%clk 0:01:38]}  Ng5 {[%clk 0:00:14]} 33. Rh2 {[%clk 0:01:39]}  Rc6 {[%clk 0:00:11]} 34. c3 {[%clk 0:01:39]}  a6 {[%clk 0:00:11]} 35. Ra1 {[%clk 0:01:37]}  Rhc8 {[%clk 0:00:09]} 36. Rc2 {[%clk 0:01:34]}  b5 {[%clk 0:00:08]} 37. axb5 {[%clk 0:01:34]}  axb5 {[%clk 0:00:09]} 38. Kg3 {[%clk 0:01:22]}  b4 {[%clk 0:00:09]} 39. Rac1 {[%clk 0:01:21]}  bxc3 {[%clk 0:00:09]} 40. Rxc3 {[%clk 0:01:20]}  Rxc3 {[%clk 0:00:08]} 41. Rxc3 {[%clk 0:01:20]}  Ra8 {[%clk 0:00:08]} 42. Be3 {[%clk 0:01:18]}  h2 {[%clk 0:00:05]} 43. Rc1 {[%clk 0:01:17]}  Ra2 {[%clk 0:00:03]} 44. Rb1 {[%clk 0:01:10]}  Re2 {[%clk 0:00:03]} 45. Bxg5 {[%clk 0:01:10]}  Kxg5 {[%clk 0:00:04]} 46. b4 {[%clk 0:01:05]}  d4 {[%clk 0:00:04]} 47. b5 {[%clk 0:01:03]}  d3 {[%clk 0:00:04]} 48. b6 {[%clk 0:01:03]}  d2 {[%clk 0:00:04]} 49. b7 {[%clk 0:01:03]}  Re1 {[%clk 0:00:05]} 50. b8=Q {[%clk 0:01:01]}  h1=Q {[%clk 0:00:02]} 51. Qg8+ {[%clk 0:00:59]}  Kh6 {[%clk 0:00:02]} 52. Qh8+ {[%clk 0:01:00]} 1-0


[Site "https://www.chess.com"]

[Event "Titled Tuesday Blitz May 31 Late 2022"]
[White "Novikova, Galina"]
[Black "Pinheiro, Iung Alicio de O."]
[WhiteFideId "4157095"]
[BlackFideId "2104350"]
[WhiteElo "1863"]
[BlackElo "2283"]
[Result "1/2-1/2"]
[Round "04"]
[TimeControl "180+1"]
[Date "2022.06.01"]
[WhiteClock "0:00:06"]
[BlackClock "0:00:16"]

1. e4 {[%clk 0:03:00]}  c5 {[%clk 0:02:58]} 2. Nf3 {[%clk 0:03:00]}  Nc6 {[%clk 0:02:57]} 3. d4 {[%clk 0:03:01]}  cxd4 {[%clk 0:02:56]} 4. Nxd4 {[%clk 0:03:02]}  Nf6 {[%clk 0:02:56]} 5. Nc3 {[%clk 0:03:02]}  d6 {[%clk 0:02:47]} 6. h3 {[%clk 0:03:01]}  h6 {[%clk 0:02:37]} 7. g4 {[%clk 0:03:01]}  g6 {[%clk 0:02:36]} 8. Bg2 {[%clk 0:03:00]}  Bg7 {[%clk 0:02:36]} 9. Be3 {[%clk 0:02:59]}  Bd7 {[%clk 0:02:29]} 10. Qd2 {[%clk 0:02:57]}  Ne5 {[%clk 0:02:16]} 11. b3 {[%clk 0:02:56]}  Rc8 {[%clk 0:02:14]} 12. f4 {[%clk 0:02:53]}  Nc6 {[%clk 0:02:14]} 13. O-O {[%clk 0:02:47]}  Qa5 {[%clk 0:02:09]} 14. Rad1 {[%clk 0:02:04]}  Nxd4 {[%clk 0:01:55]} 15. Bxd4 {[%clk 0:02:04]}  e5 {[%clk 0:01:55]} 16. fxe5 {[%clk 0:02:04]}  dxe5 {[%clk 0:01:56]} 17. Rxf6 {[%clk 0:01:34]}  Bxf6 {[%clk 0:01:01]} 18. Bxe5 {[%clk 0:01:34]}  Qc5+ {[%clk 0:00:55]} 19. Kh1 {[%clk 0:01:30]}  Bxe5 {[%clk 0:00:54]} 20. Qxd7+ {[%clk 0:01:29]}  Kf8 {[%clk 0:00:54]} 21. Nd5 {[%clk 0:01:14]}  Re8 {[%clk 0:00:41]} 22. Rf1 {[%clk 0:01:08]}  Rh7 {[%clk 0:00:41]} 23. c4 {[%clk 0:00:46]}  a5 {[%clk 0:00:35]} 24. Qxb7 {[%clk 0:00:41]}  Kg8 {[%clk 0:00:35]} 25. Qd7 {[%clk 0:00:34]}  Rf8 {[%clk 0:00:25]} 26. Ne7+ {[%clk 0:00:24]}  Kh8 {[%clk 0:00:23]} 27. Nc6 {[%clk 0:00:25]}  Qd6 {[%clk 0:00:20]} 28. Qxd6 {[%clk 0:00:17]}  Bxd6 {[%clk 0:00:21]} 29. e5 {[%clk 0:00:18]}  Bc7 {[%clk 0:00:20]} 30. Bd5 {[%clk 0:00:15]}  Kg7 {[%clk 0:00:20]} 31. a3 {[%clk 0:00:13]}  Rhh8 {[%clk 0:00:20]} 32. b4 {[%clk 0:00:14]}  axb4 {[%clk 0:00:19]} 33. axb4 {[%clk 0:00:14]}  f5 {[%clk 0:00:19]} 34. gxf5 {[%clk 0:00:13]}  Rxf5 {[%clk 0:00:18]} 35. Rxf5 {[%clk 0:00:13]}  gxf5 {[%clk 0:00:19]} 36. c5 {[%clk 0:00:13]}  Ra8 {[%clk 0:00:19]} 37. b5 {[%clk 0:00:13]}  Ra1+ {[%clk 0:00:19]} 38. Kg2 {[%clk 0:00:13]}  Rb1 {[%clk 0:00:19]} 39. b6 {[%clk 0:00:10]}  Rb2+ {[%clk 0:00:17]} 40. Kf3 {[%clk 0:00:10]}  Bxb6 {[%clk 0:00:17]} 41. cxb6 {[%clk 0:00:11]}  Rxb6 {[%clk 0:00:18]} 42. Nd4 {[%clk 0:00:08]}  Kg6 {[%clk 0:00:17]} 43. Ne6 {[%clk 0:00:05]}  Rb1 {[%clk 0:00:15]} 44. Nf4+ {[%clk 0:00:06]}  Kg5 {[%clk 0:00:15]} 45. Ne6+ {[%clk 0:00:06]}  Kh4 {[%clk 0:00:14]} 46. Kf4 {[%clk 0:00:05]}  Rf1+ {[%clk 0:00:14]} 47. Bf3 {[%clk 0:00:05]}  Kxh3 {[%clk 0:00:13]} 48. Ng7 {[%clk 0:00:06]}  h5 {[%clk 0:00:11]} 49. Nxf5 {[%clk 0:00:06]}  h4 {[%clk 0:00:12]} 50. e6 {[%clk 0:00:07]}  Re1 {[%clk 0:00:12]} 51. Be4 {[%clk 0:00:07]}  Rf1+ {[%clk 0:00:12]} 52. Ke5 {[%clk 0:00:07]}  Rb1 {[%clk 0:00:12]} 53. e7 {[%clk 0:00:07]}  Rb8 {[%clk 0:00:13]} 54. Ke6 {[%clk 0:00:07]}  Re8 {[%clk 0:00:13]} 55. Kf7 {[%clk 0:00:06]}  Rxe7+ {[%clk 0:00:13]} 56. Nxe7 {[%clk 0:00:07]}  Kg3 {[%clk 0:00:13]} 57. Nf5+ {[%clk 0:00:07]}  Kg4 {[%clk 0:00:13]} 58. Ne3+ {[%clk 0:00:05]}  Kf4 {[%clk 0:00:12]} 59. Bg2 {[%clk 0:00:04]}  Kxe3 {[%clk 0:00:12]} 60. Bc6 {[%clk 0:00:04]}  Kf2 {[%clk 0:00:12]} 61. Kf6 {[%clk 0:00:05]}  h3 {[%clk 0:00:13]} 62. Kg5 {[%clk 0:00:05]}  h2 {[%clk 0:00:14]} 63. Kg4 {[%clk 0:00:06]}  Kg1 {[%clk 0:00:15]} 64. Kg3 {[%clk 0:00:05]}  h1=Q {[%clk 0:00:16]} 65. Bxh1 {[%clk 0:00:06]} 1/2-1/2


[Site "https://www.chess.com"]

[Event "Titled Tuesday Blitz May 31 Late 2022"]
[White "Paravyan, David"]
[Black "Pershin, Denis"]
[WhiteFideId "4194985"]
[BlackFideId "24165506"]
[WhiteElo "2569"]
[BlackElo "2275"]
[Result "1/2-1/2"]
[Round "04"]
[TimeControl "180+1"]
[Date "2022.05.31"]
[WhiteClock "0:00:05"]
[BlackClock "0:00:06"]

1. e4 {[%clk 0:03:00]}  d6 {[%clk 0:02:59]} 2. d4 {[%clk 0:02:58]}  Nf6 {[%clk 0:03:00]} 3. Nc3 {[%clk 0:02:57]}  g6 {[%clk 0:03:00]} 4. Nf3 {[%clk 0:02:53]}  Bg7 {[%clk 0:03:00]} 5. Bg5 {[%clk 0:02:53]}  c6 {[%clk 0:03:00]} 6. Qd2 {[%clk 0:02:49]}  O-O {[%clk 0:02:59]} 7. Bd3 {[%clk 0:02:49]}  Qc7 {[%clk 0:02:57]} 8. h4 {[%clk 0:02:45]}  h5 {[%clk 0:02:56]} 9. O-O-O {[%clk 0:02:43]}  b5 {[%clk 0:02:56]} 10. e5 {[%clk 0:02:39]}  b4 {[%clk 0:02:49]} 11. Ne4 {[%clk 0:02:27]}  Nxe4 {[%clk 0:02:49]} 12. Bxe4 {[%clk 0:02:28]}  d5 {[%clk 0:02:34]} 13. Bd3 {[%clk 0:02:27]}  a5 {[%clk 0:02:28]} 14. Qe3 {[%clk 0:01:45]}  Bg4 {[%clk 0:01:47]} 15. Rde1 {[%clk 0:01:42]}  Bxf3 {[%clk 0:01:37]} 16. Qxf3 {[%clk 0:01:41]}  c5 {[%clk 0:01:27]} 17. Qxd5 {[%clk 0:01:41]}  Nc6 {[%clk 0:00:52]} 18. Qxc5 {[%clk 0:01:39]}  Rac8 {[%clk 0:00:42]} 19. Kb1 {[%clk 0:01:29]}  Qb8 {[%clk 0:00:30]} 20. Bxe7 {[%clk 0:01:06]}  Nxe5 {[%clk 0:00:24]} 21. Qd6 {[%clk 0:01:06]}  Nxd3 {[%clk 0:00:18]} 22. cxd3 {[%clk 0:01:06]}  Qb5 {[%clk 0:00:16]} 23. Qg3 {[%clk 0:00:36]}  Rfe8 {[%clk 0:00:15]} 24. Bc5 {[%clk 0:00:37]}  Red8 {[%clk 0:00:14]} 25. Re4 {[%clk 0:00:34]}  Rxc5 {[%clk 0:00:14]} 26. dxc5 {[%clk 0:00:34]}  Rxd3 {[%clk 0:00:14]} 27. Qf4 {[%clk 0:00:25]}  Qxc5 {[%clk 0:00:10]} 28. Re8+ {[%clk 0:00:17]}  Kh7 {[%clk 0:00:10]} 29. Rc1 {[%clk 0:00:14]}  Qd5 {[%clk 0:00:05]} 30. Qe4 {[%clk 0:00:14]}  Qxe4 {[%clk 0:00:03]} 31. Rxe4 {[%clk 0:00:14]}  Rd2 {[%clk 0:00:04]} 32. Rc2 {[%clk 0:00:09]}  Rd1+ {[%clk 0:00:04]} 33. Rc1 {[%clk 0:00:10]}  Rd2 {[%clk 0:00:05]} 34. Rc2 {[%clk 0:00:05]}  Rd1+ {[%clk 0:00:05]} 35. Rc1 {[%clk 0:00:05]}  Rd2 {[%clk 0:00:06]} 1/2-1/2


[Site "https://www.chess.com"]

[Event "Titled Tuesday Blitz May 31 Late 2022"]
[White "Rangel, Daniel"]
[Black "Urbina Perez, Juan Antonio"]
[WhiteFideId "2124475"]
[BlackFideId "2217368"]
[WhiteElo "2225"]
[BlackElo "2192"]
[Result "0-1"]
[Round "04"]
[TimeControl "180+1"]
[Date "2022.06.01"]
[WhiteClock "0:00:16"]
[BlackClock "0:00:39"]

1. c4 {[%clk 0:02:57]}  c6 {[%clk 0:02:59]} 2. g3 {[%clk 0:02:55]}  d5 {[%clk 0:03:00]} 3. Bg2 {[%clk 0:02:54]}  Nf6 {[%clk 0:02:56]} 4. Nf3 {[%clk 0:02:55]}  dxc4 {[%clk 0:02:56]} 5. O-O {[%clk 0:02:56]}  Nbd7 {[%clk 0:02:52]} 6. a4 {[%clk 0:02:55]}  a5 {[%clk 0:02:52]} 7. Na3 {[%clk 0:02:55]}  Nb6 {[%clk 0:02:52]} 8. Qc2 {[%clk 0:02:54]}  Be6 {[%clk 0:02:52]} 9. Ng5 {[%clk 0:02:51]}  Qd7 {[%clk 0:02:50]} 10. Nxe6 {[%clk 0:02:50]}  Qxe6 {[%clk 0:02:51]} 11. Rb1 {[%clk 0:02:36]}  g6 {[%clk 0:02:50]} 12. b3 {[%clk 0:02:35]}  c3 {[%clk 0:02:36]} 13. dxc3 {[%clk 0:02:12]}  Bg7 {[%clk 0:02:36]} 14. c4 {[%clk 0:01:48]}  O-O {[%clk 0:02:34]} 15. Be3 {[%clk 0:01:47]}  Nbd7 {[%clk 0:02:31]} 16. h3 {[%clk 0:01:45]}  Rfd8 {[%clk 0:02:25]} 17. Rbd1 {[%clk 0:01:38]}  Nf8 {[%clk 0:02:18]} 18. Bb6 {[%clk 0:01:37]}  Rxd1 {[%clk 0:02:16]} 19. Rxd1 {[%clk 0:01:38]}  Qe5 {[%clk 0:02:06]} 20. Bd4 {[%clk 0:01:33]}  Qd6 {[%clk 0:01:59]} 21. c5 {[%clk 0:01:20]}  Qc7 {[%clk 0:01:53]} 22. Nc4 {[%clk 0:01:20]}  Ne6 {[%clk 0:01:52]} 23. Be5 {[%clk 0:01:17]}  Qc8 {[%clk 0:01:49]} 24. Nb6 {[%clk 0:01:16]}  Qe8 {[%clk 0:01:49]} 25. Nxa8 {[%clk 0:01:15]}  Qxa8 {[%clk 0:01:50]} 26. Bc3 {[%clk 0:01:01]}  h6 {[%clk 0:01:48]} 27. Bxf6 {[%clk 0:00:51]}  Bxf6 {[%clk 0:01:47]} 28. Bf3 {[%clk 0:00:49]}  Qa7 {[%clk 0:01:45]} 29. Rd7 {[%clk 0:00:46]}  Nxc5 {[%clk 0:01:40]} 30. Rd8+ {[%clk 0:00:42]}  Kg7 {[%clk 0:01:40]} 31. Kg2 {[%clk 0:00:41]}  Ne6 {[%clk 0:01:40]} 32. Rd7 {[%clk 0:00:37]}  Qb6 {[%clk 0:01:40]} 33. h4 {[%clk 0:00:33]}  h5 {[%clk 0:01:37]} 34. e3 {[%clk 0:00:32]}  Nc5 {[%clk 0:01:37]} 35. Rd1 {[%clk 0:00:31]}  Ne6 {[%clk 0:01:30]} 36. Qc4 {[%clk 0:00:30]}  Qc7 {[%clk 0:01:26]} 37. b4 {[%clk 0:00:18]}  axb4 {[%clk 0:01:24]} 38. Qxb4 {[%clk 0:00:19]}  b6 {[%clk 0:01:22]} 39. Rb1 {[%clk 0:00:19]}  b5 {[%clk 0:01:15]} 40. axb5 {[%clk 0:00:16]}  cxb5 {[%clk 0:01:16]} 41. Qxb5 {[%clk 0:00:16]}  Qc2 {[%clk 0:01:17]} 42. Qb3 {[%clk 0:00:16]}  Qc5 {[%clk 0:01:15]} 43. Bd5 {[%clk 0:00:15]}  Nd8 {[%clk 0:00:59]} 44. Rd1 {[%clk 0:00:14]}  e6 {[%clk 0:00:58]} 45. Bc4 {[%clk 0:00:14]}  Nc6 {[%clk 0:00:57]} 46. Qb5 {[%clk 0:00:10]}  Qxb5 {[%clk 0:00:52]} 47. Bxb5 {[%clk 0:00:11]}  Ne5 {[%clk 0:00:52]} 48. Be2 {[%clk 0:00:11]}  Nc6 {[%clk 0:00:49]} 49. Rb1 {[%clk 0:00:11]}  Ne7 {[%clk 0:00:49]} 50. Rb7 {[%clk 0:00:11]}  Nf5 {[%clk 0:00:50]} 51. Bc4 {[%clk 0:00:11]}  Nd6 {[%clk 0:00:50]} 52. Rc7 {[%clk 0:00:11]}  Be5 {[%clk 0:00:49]} 53. Ba2 {[%clk 0:00:10]}  Ne4 {[%clk 0:00:47]} 54. Rd7 {[%clk 0:00:10]}  Kf6 {[%clk 0:00:47]} 55. Ra7 {[%clk 0:00:09]}  Nc5 {[%clk 0:00:46]} 56. Ra5 {[%clk 0:00:10]}  Nd3 {[%clk 0:00:46]} 57. Ra4 {[%clk 0:00:10]}  Ne1+ {[%clk 0:00:46]} 58. Kf1 {[%clk 0:00:10]}  Nd3 {[%clk 0:00:46]} 59. Ra8 {[%clk 0:00:11]}  Nc5 {[%clk 0:00:46]} 60. Rc8 {[%clk 0:00:11]}  Ne4 {[%clk 0:00:45]} 61. Ra8 {[%clk 0:00:10]}  Nd6 {[%clk 0:00:45]} 62. Ra7 {[%clk 0:00:10]}  Nb5 {[%clk 0:00:45]} 63. Ra6 {[%clk 0:00:11]}  Nc3 {[%clk 0:00:45]} 64. Bc4 {[%clk 0:00:11]}  Ne4 {[%clk 0:00:44]} 65. Bb5 {[%clk 0:00:11]}  Nd2+ {[%clk 0:00:44]} 66. Kg2 {[%clk 0:00:10]}  Nb3 {[%clk 0:00:45]} 67. Ra8 {[%clk 0:00:07]}  Nc5 {[%clk 0:00:45]} 68. Be8 {[%clk 0:00:06]}  Ne4 {[%clk 0:00:44]} 69. Bb5 {[%clk 0:00:07]}  Nd6 {[%clk 0:00:45]} 70. Ra7 {[%clk 0:00:07]}  Nxb5 {[%clk 0:00:44]} 71. Rb7 {[%clk 0:00:07]}  Nd6 {[%clk 0:00:45]} 72. Rb1 {[%clk 0:00:08]}  Nf5 {[%clk 0:00:45]} 73. Rd1 {[%clk 0:00:09]}  Kg7 {[%clk 0:00:44]} 74. Rf1 {[%clk 0:00:10]}  Bf6 {[%clk 0:00:45]} 75. Rd1 {[%clk 0:00:11]}  e5 {[%clk 0:00:44]} 76. Rd5 {[%clk 0:00:10]}  Ne7 {[%clk 0:00:43]} 77. Rd7 {[%clk 0:00:11]}  e4 {[%clk 0:00:43]} 78. Rb7 {[%clk 0:00:12]}  Nf5 {[%clk 0:00:43]} 79. Rb4 {[%clk 0:00:12]}  Nd6 {[%clk 0:00:43]} 80. Ra4 {[%clk 0:00:12]}  Be5 {[%clk 0:00:44]} 81. Ra5 {[%clk 0:00:13]}  Kf6 {[%clk 0:00:44]} 82. Ra4 {[%clk 0:00:13]}  Ke6 {[%clk 0:00:44]} 83. Ra6 {[%clk 0:00:14]}  Kf5 {[%clk 0:00:44]} 84. Ra4 {[%clk 0:00:14]}  Nb7 {[%clk 0:00:42]} 85. Ra7 {[%clk 0:00:15]}  Nc5 {[%clk 0:00:42]} 86. Ra6 {[%clk 0:00:16]}  Nxa6 {[%clk 0:00:39]} 0-1


[Site "https://www.chess.com"]

[Event "Titled Tuesday Blitz May 31 Late 2022"]
[White "Sadhwani, Raunak"]
[Black "Maghsoodloo, Parham"]
[WhiteFideId "35093487"]
[BlackFideId "12539929"]
[WhiteElo "2616"]
[BlackElo "2630"]
[Result "1/2-1/2"]
[Round "04"]
[TimeControl "180+1"]
[Date "2022.05.31"]
[WhiteClock "0:00:15"]
[BlackClock "0:00:07"]

1. e4 {[%clk 0:03:00]}  c5 {[%clk 0:02:59]} 2. Nf3 {[%clk 0:03:01]}  d6 {[%clk 0:03:00]} 3. Bb5+ {[%clk 0:03:02]}  Nd7 {[%clk 0:03:00]} 4. Be2 {[%clk 0:03:02]}  Ngf6 {[%clk 0:03:00]} 5. Nc3 {[%clk 0:03:03]}  a6 {[%clk 0:02:59]} 6. a4 {[%clk 0:03:02]}  b6 {[%clk 0:02:49]} 7. d4 {[%clk 0:03:01]}  cxd4 {[%clk 0:02:48]} 8. Qxd4 {[%clk 0:03:01]}  Bb7 {[%clk 0:02:48]} 9. Bg5 {[%clk 0:03:01]}  Qc7 {[%clk 0:02:46]} 10. O-O {[%clk 0:02:59]}  h6 {[%clk 0:02:45]} 11. Be3 {[%clk 0:02:41]}  Rc8 {[%clk 0:02:39]} 12. Nd2 {[%clk 0:02:38]}  e5 {[%clk 0:02:30]} 13. Qd3 {[%clk 0:02:38]}  Be7 {[%clk 0:02:22]} 14. Rfd1 {[%clk 0:02:22]}  Nc5 {[%clk 0:01:57]} 15. Bxc5 {[%clk 0:02:22]}  dxc5 {[%clk 0:01:57]} 16. Nc4 {[%clk 0:02:22]}  Rd8 {[%clk 0:01:51]} 17. Qg3 {[%clk 0:02:17]}  O-O {[%clk 0:01:51]} 18. Qxe5 {[%clk 0:01:46]}  Qxe5 {[%clk 0:01:50]} 19. Nxe5 {[%clk 0:01:47]}  Nxe4 {[%clk 0:01:49]} 20. Nxe4 {[%clk 0:01:47]}  Bxe4 {[%clk 0:01:49]} 21. Bd3 {[%clk 0:01:46]}  Bxd3 {[%clk 0:01:43]} 22. Nxd3 {[%clk 0:01:47]}  Bf6 {[%clk 0:01:43]} 23. c3 {[%clk 0:01:47]}  Rfe8 {[%clk 0:01:38]} 24. Kf1 {[%clk 0:01:46]}  Bg5 {[%clk 0:01:30]} 25. a5 {[%clk 0:01:43]}  c4 {[%clk 0:01:27]} 26. Nb4 {[%clk 0:01:43]}  bxa5 {[%clk 0:01:25]} 27. Nxa6 {[%clk 0:01:42]}  Rxd1+ {[%clk 0:01:13]} 28. Rxd1 {[%clk 0:01:43]}  Re5 {[%clk 0:01:09]} 29. Nc7 {[%clk 0:01:40]}  Rc5 {[%clk 0:01:04]} 30. Rd7 {[%clk 0:01:38]}  Bc1 {[%clk 0:01:02]} 31. Ke2 {[%clk 0:01:29]}  Bxb2 {[%clk 0:01:00]} 32. Kd2 {[%clk 0:01:30]}  a4 {[%clk 0:01:01]} 33. Kc2 {[%clk 0:01:30]}  a3 {[%clk 0:01:00]} 34. Nd5 {[%clk 0:01:09]}  Ra5 {[%clk 0:00:31]} 35. Nb4 {[%clk 0:01:09]}  Rh5 {[%clk 0:00:14]} 36. h3 {[%clk 0:01:05]}  Rf5 {[%clk 0:00:13]} 37. Rd2 {[%clk 0:00:59]}  h5 {[%clk 0:00:12]} 38. Re2 {[%clk 0:00:55]}  g5 {[%clk 0:00:12]} 39. f3 {[%clk 0:00:54]}  h4 {[%clk 0:00:12]} 40. Re4 {[%clk 0:00:54]}  Rc5 {[%clk 0:00:11]} 41. f4 {[%clk 0:00:42]}  f6 {[%clk 0:00:09]} 42. fxg5 {[%clk 0:00:39]}  fxg5 {[%clk 0:00:09]} 43. Rd4 {[%clk 0:00:40]}  Kf7 {[%clk 0:00:08]} 44. Rd5 {[%clk 0:00:38]}  Rxd5 {[%clk 0:00:05]} 45. Nxd5 {[%clk 0:00:39]}  Ke6 {[%clk 0:00:05]} 46. Ne3 {[%clk 0:00:31]}  Ba1 {[%clk 0:00:04]} 47. Nxc4 {[%clk 0:00:20]}  a2 {[%clk 0:00:05]} 48. Kb3 {[%clk 0:00:21]}  Bxc3 {[%clk 0:00:06]} 49. Kxa2 {[%clk 0:00:21]}  Kf5 {[%clk 0:00:02]} 50. Kb3 {[%clk 0:00:22]}  Bd4 {[%clk 0:00:02]} 51. Kc2 {[%clk 0:00:18]}  Kf4 {[%clk 0:00:02]} 52. Kd3 {[%clk 0:00:18]}  Kg3 {[%clk 0:00:03]} 53. Kxd4 {[%clk 0:00:17]}  Kxg2 {[%clk 0:00:03]} 54. Ne3+ {[%clk 0:00:15]}  Kxh3 {[%clk 0:00:04]} 55. Ke4 {[%clk 0:00:16]}  g4 {[%clk 0:00:04]} 56. Kf4 {[%clk 0:00:14]}  g3 {[%clk 0:00:04]} 57. Kf3 {[%clk 0:00:14]}  Kh2 {[%clk 0:00:05]} 58. Nf1+ {[%clk 0:00:14]}  Kh3 {[%clk 0:00:04]} 59. Ne3 {[%clk 0:00:14]}  Kh2 {[%clk 0:00:05]} 60. Nf1+ {[%clk 0:00:15]}  Kh1 {[%clk 0:00:06]} 61. Nxg3+ {[%clk 0:00:14]}  hxg3 {[%clk 0:00:07]} 62. Kxg3 {[%clk 0:00:15]} 1/2-1/2


[Site "https://www.chess.com"]